bitfinex/quotes_BTCUSD_20220303
["timestamp","ask_amount","ask_price","bid_price","bid_amount"]
[1646331129226,0.9188,42521.0,42505.0,0.3]
[1646331129429,0.16904522,42516.0,42508.0,0.19500736]
[1646331129626,0.16904522,42516.0,42509.0,0.0472]
[1646331130327,0.01228238,42518.0,42509.0,0.0562]
[1646331130528,0.08520617,42516.0,42509.0,0.0562]
[1646331131330,0.08520617,42516.0,42511.0,0.18742135]
[1646331131589,0.08520617,42516.0,42505.0,0.30108531]
[1646331131888,0.08520617,42516.0,42505.0,0.30036177]
[1646331132091,0.08520617,42516.0,42505.0,0.3]
[1646331132290,0.08520617,42516.0,42505.0,0.306]
[1646331132490,0.08520617,42516.0,42510.0,0.15520116]
[1646331132794,0.08520617,42516.0,42507.0,0.05579816]
[1646331132993,0.08520617,42516.0,42508.0,0.3]
[1646331133291,0.025,42521.0,42508.0,0.3]
[1646331134193,0.09296314,42519.0,42508.0,0.3]
[1646331134392,0.09296314,42519.0,42508.0,0.305]
[1646331134993,0.29867931,42519.0,42511.0,0.16758633]
[1646331135427,0.29867931,42519.0,42509.0,0.17100758]
[1646331135623,0.29867931,42519.0,42505.0,0.30129438]
[1646331135822,0.29867931,42519.0,42505.0,0.30194157]
[1646331135823,0.09296314,42519.0,42505.0,0.30194157]
[1646331136028,0.09296314,42519.0,42509.0,0.14]
[1646331136225,0.09296314,42519.0,42513.0,0.14]
[1646331136424,0.09296314,42519.0,42517.0,0.14]
[1646331136627,0.09296314,42519.0,42518.0,0.14]
[1646331137527,0.09296314,42519.0,42509.0,0.3]
[1646331137727,0.09296314,42519.0,42508.0,0.116]
[1646331137926,0.09296314,42519.0,42510.0,0.17270682]
[1646331138326,0.09296314,42519.0,42516.0,0.18844072]
[1646331138527,0.09296314,42519.0,42510.0,0.17270682]
[1646331139279,0.28383703,42519.0,42510.0,0.17270682]
[1646331139476,0.28383703,42519.0,42509.0,0.3]
[1646331140076,0.28383703,42519.0,42508.0,0.416]
[1646331140077,0.10510095,42512.0,42508.0,0.416]
[1646331140275,0.19087389,42519.0,42511.0,0.14]
[1646331140475,0.19087389,42519.0,42509.0,0.18809277]
[1646331140677,0.19087389,42519.0,42512.0,0.18393937]
[1646331141476,0.12073948,42517.0,42512.0,0.18393937]
[1646331141878,0.12073948,42517.0,42510.0,0.3]
[1646331142277,0.12073948,42517.0,42512.0,0.008]
[1646331142924,0.12073948,42517.0,42513.0,0.21189066]
[1646331143525,0.152,42525.0,42516.0,0.20857269]
[1646331143526,0.17443731,42524.0,42516.0,0.20857269]
[1646331143726,0.00228398,42525.0,42517.0,0.3]
[1646331143924,0.00242597,42525.0,42517.0,0.3]
[1646331144323,0.00242597,42525.0,42517.0,0.305]
[1646331144526,0.09687608,42525.0,42517.0,0.305]
[1646331144725,0.09673409,42525.0,42517.0,0.305]
[1646331145523,0.09711266,42525.0,42517.0,0.305]
[1646331146124,0.00225238,42525.0,42523.0,0.06739457]
[1646331146325,0.002,42525.0,42523.0,0.06739457]
[1646331146576,0.002,42525.0,42523.0,0.41573997]
[1646331146774,0.00212619,42525.0,42523.0,0.41573997]
[1646331146979,0.00237857,42525.0,42523.0,0.41573997]
[1646331147176,0.00237857,42525.0,42524.0,0.02925992]
[1646331147475,0.00225238,42525.0,42524.0,0.02925544]
[1646331147681,0.00212619,42525.0,42524.0,0.02925544]
[1646331147977,0.002,42525.0,42524.0,0.02925544]
[1646331152428,0.002,42525.0,42524.0,0.02914401]
[1646331157928,0.002,42525.0,42515.0,0.33422748]
[1646331157929,0.060837,42525.0,42515.0,0.33422748]
[1646331158131,0.060837,42525.0,42515.0,0.3193]
[1646331158330,0.060837,42525.0,42519.0,0.004]
[1646331158829,0.15805871,42524.0,42519.0,0.004]
[1646331159129,0.09922071,42524.0,42519.0,0.004]
[1646331159730,0.09922071,42524.0,42516.0,0.4579827]
[1646331159928,0.09922071,42524.0,42516.0,0.2478]
[1646331160928,0.00212473,42525.0,42516.0,0.2478]
[1646331160929,0.00237419,42525.0,42516.0,0.2478]
[1646331161583,0.00212473,42525.0,42519.0,0.06796971]
[1646331161784,0.002,42525.0,42519.0,0.06796971]
[1646331161983,0.002,42525.0,42516.0,0.2478]
[1646331162183,0.00224754,42525.0,42516.0,0.2478]
[1646331162386,0.00237131,42525.0,42516.0,0.2478]
[1646331162584,0.11409899,42523.0,42516.0,0.2478]
[1646331162984,0.20180251,42517.0,42516.0,0.2478]
[1646331163186,0.11409899,42523.0,42516.0,0.10350506]
[1646331163382,0.11409899,42523.0,42514.0,0.008]
[1646331163785,0.11409899,42523.0,42508.0,0.70295]
[1646331164384,0.11409899,42523.0,42508.0,0.70995]
[1646331164585,0.16517887,42521.0,42513.0,0.21745644]
[1646331164784,0.11409899,42523.0,42513.0,0.21745644]
[1646331165830,0.32422842,42523.0,42513.0,0.21745644]
[1646331166028,0.11409899,42523.0,42513.0,0.21745644]
[1646331166230,0.00213425,42525.0,42513.0,0.21745644]
[1646331166433,0.00240275,42525.0,42520.0,0.05524149]
[1646331167029,0.00213425,42525.0,42520.0,0.05524149]
[1646331167230,0.002,42525.0,42520.0,0.05524149]
[1646331167830,0.00229314,42525.0,42520.0,0.05524149]
[1646331168030,0.00243971,42525.0,42514.0,0.1157]
[1646331168230,0.15625199,42521.0,42515.0,0.01463784]
[1646331168433,0.15625199,42521.0,42514.0,0.1157]
[1646331168434,0.15625199,42521.0,42520.0,0.006]
[1646331168633,0.10904123,42522.0,42520.0,0.006]
[1646331169681,0.16245153,42521.0,42514.0,0.1157]
[1646331169882,0.10904123,42522.0,42511.0,0.0472]
[1646331170281,0.10904123,42522.0,42515.0,0.20482732]
[1646331171083,0.2741228,42522.0,42515.0,0.36982015]
[1646331171282,0.10904123,42522.0,42515.0,0.36982015]
[1646331172687,0.10904123,42522.0,42515.0,0.20482732]
[1646331173834,0.10904123,42522.0,42515.0,0.37490886]
[1646331174436,0.00214877,42525.0,42515.0,0.37490886]
[1646331174636,0.00229754,42525.0,42515.0,0.37490886]
[1646331174838,0.17095095,42525.0,42515.0,0.38190886]
[1646331175238,0.17080218,42525.0,42515.0,0.38190886]
[1646331175437,0.17065341,42525.0,42515.0,0.38190886]
[1646331175638,0.002,42525.0,42515.0,0.21176496]
[1646331175837,0.12147685,42525.0,42515.0,0.007]
[1646331176039,0.12171575,42525.0,42510.0,0.01258385]
[1646331176242,0.3,42524.0,42510.0,0.01258385]
[1646331176441,0.32356,42524.0,42510.0,0.01858385]
[1646331176689,0.20624536,42519.0,42512.0,0.15967324]
[1646331176895,0.20624536,42519.0,42510.0,0.2238087]
[1646331177088,0.09656272,42518.0,42510.0,0.01858385]
[1646331177790,0.09656272,42518.0,42510.0,0.01258385]
[1646331178490,0.002,42525.0,42510.0,0.01258385]
[1646331178692,0.00209609,42525.0,42517.0,0.06226201]
[1646331178895,0.00228827,42525.0,42510.0,0.01258385]
[1646331179291,0.00228827,42525.0,42517.0,0.18872751]
[1646331179491,0.00219218,42525.0,42510.0,0.11408738]
[1646331179691,0.002,42525.0,42511.0,0.29787985]
[1646331179894,0.002,42525.0,42511.0,0.34507985]
[1646331180335,0.00212311,42525.0,42517.0,0.21383649]
[1646331180535,0.00224622,42525.0,42514.0,0.1157]
[1646331180735,0.21015703,42525.0,42514.0,0.1157]
[1646331181138,0.21003392,42525.0,42514.0,0.1157]
[1646331181338,0.2097877,42525.0,42514.0,0.1157]
[1646331181837,0.11836243,42521.0,42514.0,0.1157]
[1646331182435,0.11836243,42521.0,42514.0,0.1227]
[1646331183136,0.058836,42519.0,42514.0,0.1227]
[1646331183539,0.058836,42519.0,42514.0,0.007]
[1646331183837,0.058836,42519.0,42510.0,0.01258385]
[1646331184279,0.058836,42519.0,42510.0,0.17318381]
[1646331184679,0.058836,42519.0,42512.0,0.17958305]
[1646331184879,0.058836,42519.0,42510.0,0.01258385]
[1646331185881,0.15489687,42518.0,42511.0,0.19349779]
[1646331186181,0.1012237,42514.0,42510.0,0.19117497]
[1646331186383,0.15489687,42518.0,42514.0,0.20244739]
[1646331187383,0.09618479,42517.0,42514.0,0.20244739]
[1646331187585,0.27271779,42517.0,42516.0,0.01086829]
[1646331188034,0.57271779,42517.0,42516.0,0.01086829]
[1646331188434,0.57471779,42517.0,42516.0,0.01086829]
[1646331188933,0.27471779,42517.0,42516.0,0.01086829]
[1646331189832,0.27271779,42517.0,42516.0,0.01086829]
[1646331190031,0.21387279,42517.0,42516.0,0.01086829]
[1646331190432,0.21387279,42517.0,42516.0,0.01686829]
[1646331191897,0.41811336,42517.0,42516.0,0.01086829]
[1646331192496,0.41811336,42517.0,42516.0,0.01586829]
[1646331193095,0.57549779,42517.0,42516.0,0.01586829]
[1646331193394,0.21387279,42517.0,42516.0,0.01586829]
[1646331193794,0.21387279,42517.0,42516.0,0.01086829]
[1646331194198,0.39292499,42517.0,42516.0,0.01086829]
[1646331194394,0.21387279,42517.0,42516.0,0.01086829]
[1646331197846,0.09946154,42525.0,42516.0,0.01086829]
[1646331198048,0.09946154,42525.0,42514.0,0.20244739]
[1646331198049,0.00213077,42525.0,42514.0,0.20244739]
[1646331198245,0.002,42525.0,42514.0,0.20244739]
[1646331198444,0.00213244,42525.0,42516.0,0.003]
[1646331198645,0.15561962,42523.0,42516.0,0.003]
[1646331198844,0.08767406,42524.0,42516.0,0.003]
[1646331199682,0.08767406,42524.0,42514.0,0.20244739]
[1646331200483,0.20655044,42515.0,42514.0,0.20744739]
[1646331200685,0.058833,42523.0,42514.0,0.21831657]
[1646331200884,0.08767406,42524.0,42514.0,0.20744739]
[1646331201084,0.058839,42521.0,42514.0,0.20744739]
[1646331201283,0.058841,42516.0,42514.0,0.20744739]
[1646331201483,0.16376919,42516.0,42515.0,0.01086918]
[1646331202483,0.16376919,42516.0,42515.0,0.01486918]
[1646331204131,0.10492819,42516.0,42515.0,0.01486918]
[1646331204333,0.058842,42517.0,42515.0,0.01486905]
[1646331204532,0.058842,42517.0,42516.0,0.01086918]
[1646331205334,0.1749357,42517.0,42516.0,0.01086918]
[1646331205936,0.17481659,42517.0,42516.0,0.01086918]
[1646331206134,0.17481659,42517.0,42516.0,0.01086905]
[1646331208479,0.17481659,42517.0,42516.0,0.01686905]
[1646331208680,0.17481659,42517.0,42516.0,0.006]
[1646331208881,0.68364159,42517.0,42516.0,0.006]
[1646331209280,0.2119912,42515.0,42514.0,0.20244739]
[1646331209479,0.358858,42515.0,42514.0,0.20244739]
[1646331209678,0.348858,42515.0,42514.0,0.20244739]
[1646331210079,0.058858,42515.0,42514.0,0.20244739]
[1646331210325,0.420483,42515.0,42514.0,0.20244739]
[1646331210524,0.058858,42515.0,42514.0,0.20244739]
[1646331212327,0.420483,42515.0,42514.0,0.20244739]
[1646331212528,0.420283,42515.0,42514.0,0.20244739]
[1646331212927,0.058658,42515.0,42514.0,0.20244739]
[1646331213726,0.420283,42515.0,42514.0,0.20244739]
[1646331214593,0.425283,42515.0,42514.0,0.20244739]
[1646331214794,0.525283,42515.0,42514.0,0.20244739]
[1646331215694,0.820283,42515.0,42514.0,0.20244739]
[1646331215994,0.458658,42515.0,42514.0,0.20244739]
[1646331216195,0.820283,42515.0,42514.0,0.20244739]
[1646331217193,0.867483,42515.0,42514.0,0.20244739]
[1646331218150,0.058867,42500.0,42498.0,0.524]
[1646331218351,0.058867,42500.0,42494.0,0.1213]
[1646331218548,0.058867,42500.0,42493.0,0.00040557]
[1646331218949,0.058867,42500.0,42493.0,0.00027038]
[1646331219148,0.1797582,42500.0,42493.0,0.00013519]
[1646331219350,0.1797582,42500.0,42489.0,0.3]
[1646331219550,0.1797582,42500.0,42493.0,0.00014508]
[1646331219749,0.1797582,42500.0,42493.0,0.00029016]
[1646331219948,0.1797582,42500.0,42493.0,0.01043524]
[1646331220355,0.21745024,42499.0,42493.0,0.01043524]
[1646331220552,0.597143,42498.0,42493.0,0.01014508]
[1646331220750,0.1,42497.0,42493.0,0.01013289]
[1646331221352,0.361625,42496.0,42493.0,0.01039867]
[1646331221603,0.410504,42496.0,42493.0,0.00039867]
[1646331221799,0.361625,42494.0,42493.0,0.00026578]
[1646331221999,0.361625,42494.0,42483.0,0.1213]
[1646331222200,0.117772,42493.0,42483.0,0.1213]
[1646331222398,0.4590853,42492.0,42491.0,0.00012282]
[1646331222801,0.4590853,42492.0,42491.0,0.00036846]
[1646331223006,0.6651713,42492.0,42491.0,0.00036846]
[1646331223301,0.6651713,42492.0,42491.0,0.00024564]
[1646331223501,0.6651713,42492.0,42480.0,0.16388129]
[1646331223703,0.158893,42491.0,42489.0,0.00013452]
[1646331223902,0.361625,42490.0,42489.0,0.00013452]
[1646331224101,0.05889202,42490.0,42489.0,0.00013452]
[1646331224302,0.15889202,42490.0,42489.0,0.00040356]
[1646331224500,0.105,42490.0,42489.0,0.00040356]
[1646331224701,0.105,42490.0,42489.0,0.00026904]
[1646331224901,0.105,42490.0,42489.0,0.00013452]
[1646331225101,0.466625,42490.0,42480.0,0.16388129]
[1646331225335,0.466625,42490.0,42487.0,0.00013453]
[1646331225336,0.1,42489.0,42487.0,0.00013453]
[1646331225534,0.1,42489.0,42487.0,0.00026906]
[1646331225731,0.1,42489.0,42487.0,0.00040359]
[1646331226330,0.025,42490.0,42487.0,0.00040359]
[1646331226530,0.025,42490.0,42487.0,0.00013453]
[1646331226730,0.025,42490.0,42488.0,0.010002]
[1646331226934,0.05887298,42503.0,42487.0,0.009992]
[1646331227232,0.09292805,42502.0,42486.0,0.12081714]
[1646331227434,0.21034765,42498.0,42491.0,0.29857022]
[1646331227631,0.21034765,42498.0,42491.0,0.10297448]
[1646331228034,0.21034765,42498.0,42487.0,0.009992]
[1646331228233,0.15180105,42502.0,42492.0,0.00010856]
[1646331228431,0.058872,42500.0,42492.0,0.00010856]
[1646331228633,0.058872,42500.0,42492.0,0.00021712]
[1646331228931,0.058872,42500.0,42492.0,0.00032568]
[1646331229182,0.058872,42500.0,42492.0,0.00021712]
[1646331229381,0.27240392,42500.0,42492.0,0.00010856]
[1646331229581,0.27240392,42500.0,42493.0,9.899e-05]
[1646331229781,0.058872,42500.0,42493.0,9.899e-05]
[1646331229982,0.058872,42500.0,42493.0,0.00019798]
[1646331230183,0.058872,42500.0,42493.0,0.00029697]
[1646331230589,0.058872,42500.0,42493.0,0.00019798]
[1646331230783,0.117753,42498.0,42493.0,9.899e-05]
[1646331230983,0.058874,42496.0,42490.0,0.08951635]
[1646331231184,0.058874,42496.0,42493.0,0.0001248]
[1646331231383,0.058874,42496.0,42493.0,0.0002496]
[1646331231583,0.058874,42496.0,42493.0,0.0003744]
[1646331232185,0.058874,42496.0,42494.0,0.009987]
[1646331232387,0.025,42506.0,42494.0,0.009987]
[1646331232589,0.1,42508.0,42494.0,0.01256774]
[1646331232828,0.1397,42516.0,42495.0,0.009978]
[1646331233033,0.1397,42516.0,42499.0,0.15231491]
[1646331233232,0.1397,42516.0,42500.0,0.3]
[1646331233233,0.08971498,42509.0,42500.0,0.3]
[1646331233428,0.08971498,42509.0,42501.0,0.1155]
[1646331233829,0.01228238,42508.0,42501.0,0.1155]
[1646331234129,0.01228238,42508.0,42502.0,0.00997]
[1646331234328,0.01228238,42508.0,42502.0,0.009969]
[1646331234731,0.01228238,42508.0,42501.0,0.1185]
[1646331234928,0.07114038,42508.0,42501.0,0.1185]
[1646331235328,0.07114038,42508.0,42502.0,0.009969]
[1646331235630,0.07114038,42508.0,42501.0,0.1185]
[1646331235837,0.117736,42504.0,42501.0,0.1155]
[1646331236029,0.117736,42504.0,42496.0,0.00115683]
[1646331236229,0.117736,42504.0,42496.0,0.00077122]
[1646331236230,0.058868,42502.0,42496.0,0.00077122]
[1646331236429,0.058868,42502.0,42493.0,0.3042]
[1646331236682,0.058868,42502.0,42496.0,0.002]
[1646331236683,0.11505616,42497.0,42496.0,0.002]
[1646331237880,0.11505616,42497.0,42490.0,0.21118564]
[1646331238081,0.11505616,42497.0,42493.0,0.00013739]
[1646331238483,0.11505616,42497.0,42493.0,0.00027478]
[1646331238683,0.11505616,42497.0,42493.0,0.00041217]
[1646331239081,0.11505616,42497.0,42493.0,0.00013739]
[1646331239285,0.11505616,42497.0,42489.0,0.18603808]
[1646331239481,0.11505616,42497.0,42493.0,0.00013739]
[1646331239885,0.11505616,42497.0,42493.0,0.00027478]
[1646331240082,0.11505616,42497.0,42493.0,0.00041217]
[1646331240539,0.11505616,42497.0,42493.0,0.00027478]
[1646331240738,0.11505616,42497.0,42489.0,0.18603808]
[1646331241042,0.058868,42502.0,42493.0,9.537e-05]
[1646331241239,0.058868,42502.0,42493.0,0.00019074]
[1646331241442,0.058868,42502.0,42493.0,0.00028611]
[1646331241939,0.058868,42502.0,42493.0,9.537e-05]
[1646331242143,0.058868,42502.0,42490.0,0.3]
[1646331242340,0.09260853,42501.0,42491.0,0.009988]
[1646331242539,0.09260853,42501.0,42493.0,0.007]
[1646331243040,0.17514595,42500.0,42493.0,0.007]
[1646331243243,0.09260853,42501.0,42493.0,0.007]
[1646331243440,0.058868,42502.0,42494.0,0.009984]
[1646331243645,0.1,42503.0,42496.0,0.07108498]
[1646331243939,0.1,42505.0,42494.0,0.009981]
[1646331244381,0.31743914,42505.0,42497.0,0.009978]
[1646331244581,0.1,42505.0,42497.0,0.009978]
[1646331244780,0.025,42505.0,42497.0,0.009978]
[1646331244983,0.08031502,42508.0,42497.0,0.009978]
[1646331245281,0.7151,42512.0,42497.0,0.009978]
[1646331245483,0.7401,42512.0,42497.0,0.130878]
[1646331245882,0.11715103,42508.0,42498.0,0.18708531]
[1646331246083,0.11715103,42508.0,42499.0,0.009973]
[1646331246983,0.11715103,42508.0,42502.0,0.09783431]
[1646331247184,0.058854,42510.0,42502.0,0.09783431]
[1646331248233,0.4401,42512.0,42503.0,0.009968]
[1646331248630,0.4151,42512.0,42507.0,0.009962]
[1646331249234,0.15762736,42511.0,42507.0,0.009962]
[1646331249532,0.4151,42512.0,42507.0,0.009962]
[1646331250733,0.4151,42512.0,42509.0,0.12031681]
[1646331250934,0.4151,42512.0,42510.0,0.009958]
[1646331252387,0.06109452,42525.0,42510.0,0.009958]
[1646331252388,0.025,42523.0,42511.0,0.0472]
[1646331252589,0.05,42524.0,42513.0,0.01255378]
[1646331252788,0.00237428,42525.0,42516.0,0.01381173]
[1646331252789,0.00224952,42525.0,42516.0,0.01381173]
[1646331252988,0.002,42525.0,42518.0,0.01382813]
[1646331253187,0.002,42525.0,42522.0,0.09318463]
[1646331253386,0.002,42525.0,42524.0,0.10350019]
[1646331253387,0.00209582,42525.0,42524.0,0.10350019]
[1646331253586,0.00228746,42525.0,42524.0,0.11343319]
[1646331253788,0.00228746,42525.0,42524.0,0.11342102]
[1646331253991,0.00228746,42525.0,42524.0,0.30680778]
[1646331254188,0.00209582,42525.0,42524.0,0.30680778]
[1646331254389,0.002,42525.0,42524.0,0.30680778]
[1646331254589,0.002,42525.0,42524.0,0.31180778]
[1646331254991,0.002,42525.0,42524.0,0.11842102]
[1646331255191,0.002,42525.0,42524.0,0.10848802]
[1646331255433,0.002,42525.0,42524.0,0.11842102]
[1646331255835,0.002,42525.0,42524.0,0.11342202]
[1646331256034,0.002,42525.0,42524.0,0.10348802]
[1646331256236,0.002,42525.0,42524.0,0.11342102]
[1646331257735,0.002,42525.0,42521.0,0.1166]
[1646331257935,0.060835,42525.0,42520.0,0.009936]
[1646331258137,0.060835,42525.0,42519.0,0.315]
[1646331258735,0.09747155,42520.0,42519.0,0.009938]
[1646331258935,0.09747155,42520.0,42519.0,0.11343575]
[1646331259380,0.09747155,42520.0,42515.0,0.006]
[1646331259879,0.09747155,42520.0,42513.0,0.227]
[1646331259880,0.058845,42519.0,42513.0,0.227]
[1646331260281,0.16950975,42518.0,42510.0,0.3179]
[1646331260482,0.16950975,42518.0,42511.0,0.009953]
[1646331261080,0.058845,42519.0,42511.0,0.009953]
[1646331261282,0.058845,42519.0,42511.0,0.009952]
[1646331261686,0.08660843,42513.0,42510.0,0.3179]
[1646331261982,0.08660843,42513.0,42507.0,0.009958]
[1646331262831,0.08660843,42513.0,42507.0,0.1834271]
[1646331263029,0.08660843,42513.0,42507.0,0.009958]
[1646331263733,0.3,42521.0,42507.0,0.009958]
[1646331263930,0.00224957,42525.0,42507.0,0.009958]
[1646331263931,0.264885,42523.0,42507.0,0.009958]
[1646331264130,0.217685,42523.0,42507.0,0.009958]
[1646331264333,0.117685,42523.0,42507.0,0.009958]
[1646331264530,0.21727053,42517.0,42507.0,0.009958]
[1646331265032,0.09680537,42520.0,42507.0,0.009958]
[1646331265231,0.058843,42518.0,42514.0,0.00995]
[1646331265632,0.1,42522.0,42514.0,0.00995]
[1646331266032,0.19079809,42522.0,42514.0,0.00995]
[1646331266232,0.00230138,42525.0,42513.0,0.37062556]
[1646331266434,0.06128607,42525.0,42514.0,0.009945]
[1646331266695,0.00245207,42525.0,42515.0,0.009944]
[1646331266898,0.00215069,42525.0,42515.0,0.333504]
[1646331267094,0.002,42525.0,42516.0,0.01286066]
[1646331267295,0.002,42525.0,42520.0,0.39938045]
[1646331267497,0.0021507,42525.0,42521.0,0.009937]
[1646331267694,0.1010553,42525.0,42521.0,0.009937]
[1646331267894,0.101206,42525.0,42521.0,0.009937]
[1646331268096,0.1010553,42525.0,42521.0,0.009937]
[1646331268397,0.21474249,42522.0,42521.0,0.009937]
[1646331268598,0.21474249,42522.0,42521.0,0.14982557]
[1646331268799,0.1007539,42525.0,42521.0,0.14982557]
[1646331268997,0.10086781,42525.0,42521.0,0.009937]
[1646331269198,0.10109563,42525.0,42521.0,0.009937]
[1646331269601,0.10098172,42525.0,42521.0,0.009937]
[1646331269801,0.10086781,42525.0,42521.0,0.009937]
[1646331269998,0.1007539,42525.0,42521.0,0.009937]
[1646331270444,0.10098172,42525.0,42521.0,0.009937]
[1646331270646,0.10109563,42525.0,42521.0,0.009937]
[1646331271244,0.10086781,42525.0,42521.0,0.009937]
[1646331271447,0.1007539,42525.0,42521.0,0.009937]
[1646331271647,0.10086781,42525.0,42521.0,0.009937]
[1646331271845,0.10098172,42525.0,42521.0,0.009937]
[1646331272048,0.10109563,42525.0,42521.0,0.009937]
[1646331272444,0.10098172,42525.0,42521.0,0.009937]
[1646331272646,0.10086781,42525.0,42521.0,0.016937]
[1646331272844,0.1007539,42525.0,42521.0,0.016937]
[1646331273249,0.1007539,42525.0,42521.0,0.007]
[1646331273250,0.1595889,42525.0,42521.0,0.007]
[1646331273448,0.361625,42524.0,42521.0,0.007]
[1646331273845,0.361625,42524.0,42514.0,0.4325]
[1646331274091,0.1010426,42525.0,42514.0,0.4325]
[1646331274092,0.10089825,42525.0,42514.0,0.4325]
[1646331274295,0.10544076,42518.0,42514.0,0.4325]
[1646331274492,0.10544076,42518.0,42514.0,0.319]
[1646331275094,0.10544076,42518.0,42510.0,0.009947]
[1646331275294,0.10544076,42518.0,42509.0,0.006]
[1646331275994,0.10544076,42518.0,42506.0,0.24510656]
[1646331276192,0.058846,42517.0,42506.0,0.24510656]
[1646331276393,0.08900956,42511.0,42506.0,0.24510656]
[1646331276595,0.058846,42517.0,42507.0,0.009955]
[1646331276794,0.1,42521.0,42509.0,0.20905336]
[1646331276996,0.117691,42523.0,42510.0,0.3]
[1646331277394,0.117691,42523.0,42509.0,0.20905336]
[1646331277594,0.11704452,42517.0,42509.0,0.20905336]
[1646331277829,0.11704452,42517.0,42510.0,0.009951]
[1646331278630,0.11704452,42517.0,42507.0,0.009956]
[1646331279031,0.11704452,42517.0,42509.0,0.009956]
[1646331280634,0.11704452,42517.0,42509.0,0.016956]
[1646331281034,0.11704452,42517.0,42509.0,0.316956]
[1646331281235,0.11704452,42517.0,42509.0,0.016956]
[1646331281884,0.11704452,42517.0,42509.0,0.009956]
[1646331282982,0.11704452,42517.0,42509.0,0.309956]
[1646331283182,0.117679,42521.0,42509.0,0.309956]
[1646331283382,0.1,42520.0,42509.0,0.309956]
[1646331283585,0.058838,42521.0,42509.0,0.009956]
[1646331283783,0.1,42522.0,42509.0,0.009956]
[1646331284184,0.17327925,42518.0,42509.0,0.20669072]
[1646331284384,0.10097829,42519.0,42509.0,0.20669072]
[1646331284584,0.10097829,42519.0,42511.0,0.009953]
[1646331285536,0.060835,42525.0,42517.0,0.16628321]
[1646331285739,0.002,42525.0,42518.0,0.009941]
[1646331285937,0.00192547,42525.0,42518.0,0.009941]
[1646331286138,0.00205094,42525.0,42518.0,0.009941]
[1646331286339,0.00217641,42525.0,42518.0,0.009941]
[1646331286538,0.09893825,42525.0,42518.0,0.009941]
[1646331286739,0.26304831,42525.0,42518.0,0.009941]
[1646331286939,0.26279737,42525.0,42518.0,0.009941]
[1646331287141,0.0018,42525.0,42518.0,0.11738152]
[1646331287340,0.0018,42525.0,42520.0,0.009939]
[1646331287539,0.00211028,42525.0,42520.0,0.009939]
[1646331287742,0.00226542,42525.0,42522.0,0.009937]
[1646331288139,0.00211028,42525.0,42524.0,0.13988857]
[1646331288341,0.00195514,42525.0,42524.0,0.14982157]
[1646331288542,0.00195514,42525.0,42524.0,0.11341128]
[1646331288543,0.0018,42525.0,42524.0,0.11341128]
[1646331290481,0.05540755,42526.0,42524.0,0.11341128]
[1646331290684,0.05540755,42526.0,42525.0,0.11342245]
[1646331291486,0.05540755,42526.0,42525.0,0.21946663]
[1646331292586,0.05540755,42526.0,42525.0,0.11342245]
[1646331294654,0.05540755,42526.0,42525.0,0.11742245]
[1646331296056,0.05540755,42526.0,42525.0,0.11342245]
[1646331296458,0.058831,42522.0,42520.0,0.009934]
[1646331296691,0.058831,42522.0,42520.0,0.013934]
[1646331297492,0.058831,42522.0,42521.0,0.13988857]
[1646331297692,0.058831,42522.0,42521.0,0.14982757]
[1646331297895,0.10829161,42524.0,42522.0,0.009937]
[1646331298096,0.00010902,42525.0,42523.0,0.13988857]
[1646331298393,0.00010902,42525.0,42516.0,0.01175]
[1646331298394,0.001,42527.0,42518.0,0.16311906]
[1646331298594,0.00010903,42525.0,42519.0,0.009938]
[1646331298794,0.00032709,42525.0,42519.0,0.009938]
[1646331299195,0.058831,42522.0,42518.0,0.005]
[1646331299996,0.01308109,42522.0,42514.0,0.3204]
[1646331300357,0.10522586,42518.0,42514.0,0.3204]
[1646331300557,0.058846,42516.0,42514.0,0.3204]
[1646331300759,0.01227719,42522.0,42514.0,0.3204]
[1646331300959,0.11465151,42523.0,42514.0,0.3204]
[1646331301761,0.12077466,42523.0,42514.0,0.3204]
[1646331302158,0.058837,42521.0,42514.0,0.3204]
[1646331302760,0.18689907,42519.0,42514.0,0.3254]
[1646331302960,0.058837,42521.0,42514.0,0.3254]
[1646331303761,0.058842,42516.0,42514.0,0.3254]
[1646331303962,0.058842,42516.0,42515.0,0.00995]
[1646331305187,0.058838,42519.0,42515.0,0.10288809]
[1646331305389,0.10612315,42523.0,42516.0,0.009947]
[1646331305587,0.10612315,42523.0,42516.0,0.309947]
[1646331305788,0.10612315,42523.0,42516.0,0.009947]
[1646331306588,0.10612315,42523.0,42511.0,0.3]
[1646331306786,0.10612315,42523.0,42512.0,0.009946]
[1646331307834,0.058838,42519.0,42513.0,0.0169078]
[1646331308034,0.058838,42519.0,42514.0,0.009949]
[1646331309239,0.058838,42519.0,42517.0,0.009946]
[1646331309839,0.10612315,42523.0,42516.0,0.30502585]
[1646331310038,0.00015078,42525.0,42517.0,0.1040383]
[1646331310240,0.00045234,42525.0,42517.0,0.4040383]
[1646331310640,0.00045234,42525.0,42520.0,0.02356]
[1646331310841,0.00045234,42525.0,42524.0,0.01555406]
[1646331310842,0.00030156,42525.0,42524.0,0.01555406]
[1646331311039,0.001,42527.0,42526.0,0.06239291]
[1646331311244,0.001,42527.0,42526.0,0.40959291]
[1646331311441,0.001,42527.0,42526.0,0.65949291]
[1646331311891,0.001,42527.0,42526.0,0.76295659]
[1646331312290,0.001,42527.0,42526.0,0.70056368]
[1646331312492,0.001,42537.0,42527.0,0.95]
[1646331312692,0.001,42537.0,42531.0,0.10344422]
[1646331312893,0.001,42537.0,42533.0,0.10344422]
[1646331313090,0.001,42537.0,42533.0,0.45064422]
[1646331314496,0.001,42537.0,42533.0,0.55903564]
[1646331314694,0.001,42537.0,42533.0,0.75567007]
[1646331315535,0.00116482,42536.0,42533.0,0.75567007]
[1646331315738,0.00132964,42536.0,42533.0,0.45567007]
[1646331315940,0.00149446,42536.0,42533.0,0.75567007]
[1646331316339,0.00132964,42536.0,42533.0,0.75567007]
[1646331316641,0.001,42536.0,42533.0,0.45567007]
[1646331316837,0.001,42536.0,42533.0,0.97849943]
[1646331316838,0.00116482,42536.0,42533.0,0.97849943]
[1646331317038,0.00132964,42536.0,42533.0,0.97849943]
[1646331317237,0.00149446,42536.0,42533.0,0.97849943]
[1646331317437,0.00149446,42536.0,42533.0,0.41447007]